Cogmind - Beta 16 @@@ ROGUE MODE // 2025.10.29 @ 19:13:50 Player: beans Result: Destroyed by H-61 Shepherd with Heavy Assault Cannon Performance ------------- Evolutions (2) 1000 Regions Visited (5) 1000 Robots Destroyed (63) 315 Value Destroyed (1817) 1817 Prototype IDs (28) 560 Alien Tech Used (0) 0 Bonus (116) 116 TOTAL SCORE: 4808 Bonus ------- High Alert Combat Kills 116 Cogmind --------- Core Integrity 0/550 Matter 216/300 Energy 100/100 System Corruption 1% Temperature Cool (2) Movement Flying (35) Location -8/Materials Parts ------- > --- POWER (1) -------- (None) > --- PROPULSION (4) --- Improved VTOL Module > --- UTILITY (4) ------ System Shield > --- WEAPON (2) ------- (None) > --- INVENTORY (5) ---- Makeshift Sensor Array AWS/Autocannon Peak State ------------ > --- POWER ------------ Light Deuterium Engine > --- PROPULSION ------- Improved Flight Unit Improved VTOL Module Improved VTOL Module Improved VTOL Module > --- UTILITY ---------- Scrap Suit Improved Heat Sink System Shield > --- WEAPON ----------- Improved Assault Rifle Improved Assault Rifle > --- INVENTORY -------- Makeshift Sensor Array AWS/Autocannon Rocket Launcher [Rating: 41] Favorites ----------- Power Improved Ion Engine Engine Improved Ion Engine Propulsion Flight Unit Treads Light Treads Flight Unit Flight Unit Utility Targeting Computer Device Scrap Suit Processor Targeting Computer Hackware System Shield Protection Improved Weapon Shielding Weapon Autogun Energy Gun Beam Rifle Ballistic Gun Autogun Ballistic Cannon Flak Cannon Launcher Rocket Launcher Build | -11 -10 -10 -10 -9 -8 ------- Run | Yrd Mat Min Exi Min Mat Slots Evolved 4 | . . . . . 4 Power . | . . . . . . Propulsion 2 | . . . . . 2 Utility 2 | . . . . . 2 Weapon . | . . . . . . Parts Attached 36 | 2 9 . 1 4 20 Power 3 | . . . . 1 2 Engine 3 | . . . . 1 2 Core . | . . . . . . Reactor . | . . . . . . Propulsion 12 | . 4 . . 2 6 Treads 2 | . . . . . 2 Leg . | . . . . . . Wheel . | . . . . . . Hover . | . . . . . . Flight 10 | . 4 . . 2 4 Utility 6 | . 2 . . 1 3 Device 2 | . . . . 1 1 Storage . | . . . . . . Processor 2 | . 2 . . . . Hackware 1 | . . . . . 1 Protection 1 | . . . . . 1 Artifact . | . . . . . . Weapon 15 | 2 3 . 1 . 9 Energy Gun 2 | . . . . . 2 Energy Cannon . | . . . . . . Ballistic Gun 10 | 2 2 . 1 . 5 Ballistic Cannon 2 | . 1 . . . 1 Launcher 1 | . . . . . 1 Special Weapon . | . . . . . . Impact Weapon . | . . . . . . Slashing Weapon . | . . . . . . Piercing Weapon . | . . . . . . Special Melee Weapon . | . . . . . . Unidentified Prototypes 5 | . . . . . 5 Parts Lost 18 | . 2 . . 2 14 Power 1 | . . . . . 1 Propulsion 9 | . 2 . . 2 5 Utility 1 | . . . . . 1 Weapon 7 | . . . . . 7 Highest Loss Streak 4 | . 1 . . 2 4 To Critical Strikes . | . . . . . . Average Backups 3 | 1 4 5 3 3 2 Power . | . . . . . . Propulsion . | . 1 1 . . . Utility 1 | . 1 2 . 1 1 Weapon 1 | . . . 1 2 1 Tool/Special . | . . . . . . Unused Backups 9 | . 2 1 4 . 2 Power . | . . . . . . Propulsion 3 | . 2 . 1 . . Utility 3 | . . . 2 . 1 Weapon 1 | . . . . . 1 Tool/Special 2 | . . 1 1 . . Average Slot Usage (%) 75 | . 79 85 85 78 61 Engine 1 | . . . . . 4 Flight 24 | . 25 28 28 26 22 Device 3 | . . . . 3 12 Processor 18 | . 25 28 28 20 . Ballistic Gun 23 | . 27 28 28 28 10 Ballistic Cannon 1 | . . . . . 3 Peak Build Rating 41 | 2 8 8 13 19 41 Average Rating 12 | 1 7 8 11 14 28 On Entrance 8 | . 2 8 8 13 19 Avg Prop Armor Cover (%) . | . . . . . . Naked Turns . | . . . . . . Heaviest Build 23 | 3 6 6 7 11 23 Greatest Support 40 | 3 8 8 8 8 40 Greatest Overweight (x) 5 | . . . . 2 5 Average Overweight (x) . | . . . . . . Largest Inventory Capacity 5 | 5 5 5 5 5 5 Average Capacity 5 | 5 5 5 5 5 5 Most Carried 5 | 2 5 5 5 5 5 Average Carried 4 | 1 4 4 4 5 4 Final Capacity 5 | 5 5 5 5 5 5 Final Carried 5 | 2 5 5 5 5 4 Scrap Suit Usage (%) 21 | . . . . 27 83 Parts Cannibalized 2 | . . . . . 2 Class Distribution -------------------- 85% | Mutant 12% | Sprinter Dominant Class ---------------- Mutant | -10/Materials Mutant | -10/Mines Mutant | -10/Exiles Mutant | -9/Mines Sprinter | -8/Materials Resources | -11 -10 -10 -10 -9 -8 ----------- Run | Yrd Mat Min Exi Min Mat Matter Collected 1827 | 220 508 . 74 100 925 Remotely . | . . . . . . Salvage Created 2055 | . 606 . 154 67 1228 Parts 138 | . 50 . 9 7 72 Haulers Intercepted 5 | . 2 . . . 3 Recyclers Shooed . | . . . . . . Parts Field Recycled . | . . . . . . Retrieved Matter . | . . . . . . Parts Self-Destructed . | . . . . . . Prevented . | . . . . . . Parts Restored . | . . . . . . Kills | -11 -10 -10 -10 -9 -8 ------- Run | Yrd Mat Min Exi Min Mat Combat Hostiles Destroyed 51 | . 15 . 1 4 31 Guns 35 | . 12 . 1 4 18 Cannons 13 | . 3 . . . 10 AOE 3 | . . . . . 3 Classes Destroyed 9 | . 5 . 1 . 3 Builder 2 | . . . . . 2 Tunneler 1 | . 1 . . . . Hauler 5 | . 2 . . . 3 Watcher 4 | . 3 . . . 1 Swarmer 14 | . 6 . . 4 4 Cutter 4 | . . . . . 4 Grunt 26 | . 9 . . . 17 Sentry 5 | . . . . . 5 Hunter 2 | . . . 1 . 1 Best Kill Streak 5 | . 4 . 1 4 5 Combat Bots Only 5 | . 4 . 1 4 5 Max Kills in Single Turn 3 | . 2 . 1 2 3 Gunslinging 1 | . 1 . . . . Exploded 2 | . . . . . 2 Melee . | . . . . . . Uniques/NPCs Destroyed . | . . . . . . Combat | -11 -10 -10 -10 -9 -8 -------- Run | Yrd Mat Min Exi Min Mat Hostile Shots Fired 277 | . 59 . . 26 192 Missed 102 | . 21 . . 8 73 Hits 175 | . 38 . . 18 119 Melee 5 | . . . . . 5 Projectile 170 | . 38 . . 18 114 AOE 4 | . . . . . 4 Critical Strikes 8 | . . . . . 8 Damage Taken 2712 | . 376 . . 190 2146 Core 716 | . 122 . . 8 586 Absorbed by Shields . | . . . . . . Redirected to Shielding 18 | . . . . . 18 Regen/Repaired (Parts) 7 | . . . . . 7 Core Remaining (%) 74 | 100 . . . 48 . Volleys Fired 214 | . 65 . 8 10 131 Largest 2 | . 2 . 2 2 2 Hottest 102 | . 50 . 51 51 102 Shots Fired 389 | . 128 . 16 20 225 Gun 326 | . 112 . 16 20 178 Cannon 60 | . 16 . . . 44 Launcher 3 | . . . . . 3 Special . | . . . . . . Kinetic 371 | . 128 . 16 20 207 Thermal 15 | . . . . . 15 Explosive 3 | . . . . . 3 Electromagnetic . | . . . . . . Robot Hit Streak 24 | . 12 . 13 2 24 Robot Miss Streak 18 | . 3 . . 7 18 Penetration Max 1 | . . . . . 1 Secondary Targets 1 | . 1 . . . . Max Gunslinging Chain 1 | . 1 . . . . Shots Hit Robots 261 | . 82 . 12 4 163 Core Hits 152 | . 33 . 6 4 109 Critical Kills . | . . . . . . Critical Parts Destroyed 2 | . 1 . . . 1 Critical Strikes 3 | . 2 . . . 1 Destroy 2 | . 1 . . . 1 Blast 1 | . 1 . . . . Melee Attacks . | . . . . . . Impact . | . . . . . . Slashing . | . . . . . . Piercing . | . . . . . . Sneak Attacks . | . . . . . . Combat Hostiles . | . . . . . . Follow-up Attacks . | . . . . . . Damage Inflicted 4323 | . 1075 . 217 135 2896 Guns 3183 | . 931 . 217 135 1900 Cannons 943 | . 144 . . . 799 Explosions 197 | . . . . . 197 Melee . | . . . . . . Ramming . | . . . . . . Kinetic 4019 | . 1075 . 217 135 2592 Thermal 107 | . . . . . 107 Explosive 197 | . . . . . 197 Electromagnetic . | . . . . . . Impact . | . . . . . . Slashing . | . . . . . . Piercing . | . . . . . . Highest Corruption 1 | . . . . . 1 Average Corruption 1 | . . . . . 1 Corruption Purged . | . . . . . . Corruption Blocked . | . . . . . . Effects 5 | . . . . . 5 Message Errors 3 | . . . . . 3 Matter Fused 1 | . . . . . 1 Energy Discharges 1 | . . . . . 1 Overload Shots . | . . . . . . Overflow Damage 28 | . . . . . 28 Projectiles 5 | . . . . . 5 Explosions 23 | . . . . . 23 Melee . | . . . . . . Knockbacks 14 | . . . . . 14 Impact . | . . . . . . Kinetic 14 | . . . . . 14 Secondary . | . . . . . . Self-Inflicted Damage 105 | . . . . 45 60 Shots 3 | . . . . 1 2 Rammed . | . . . . . . Targets Rammed . | . . . . . . Kicked . | . . . . . . Crushed . | . . . . . . Highest Temperature 292 | . 12 . 6 20 292 Average Temperature 23 | . 4 . 3 5 77 Received Heat Transfer 855 | . 108 . . . 747 Siege Activations . | . . . . . . Martial Activations . | . . . . . . Shielding Activations . | . . . . . . Robots Disrupted . | . . . . . . Combat Hostiles . | . . . . . . Robots Corrupted . | . . . . . . Combat Hostiles . | . . . . . . Parts Fried . | . . . . . . Impact Corruptions . | . . . . . . Robots Melted . | . . . . . . Combat Hostiles . | . . . . . . Parts Melted . | . . . . . . Heat Transferred 259 | . . . . . 259 Parts Sabotaged . | . . . . . . Parts Stolen . | . . . . . . Parts Stripped . | . . . . . . Power Chain Reactions . | . . . . . . Alert | -11 -10 -10 -10 -9 -8 ------- Run | Yrd Mat Min Exi Min Mat Maximum Alert Level 2 | . . . . . 2 Low Security (%) 85 | 100 100 100 . 100 44 Level 1 4 | . . . . . 16 Level 2 10 | . . . . . 39 Level 3 . | . . . . . . Level 4 . | . . . . . . Level 5 . | . . . . . . High Security . | . . . . . . Max Security . | . . . . . . Peak Influence 585 | . 195 68 . 125 585 Initial 68 | . . 68 . . 33 Average 112 | . 46 68 . 79 298 Influence Increases 1772 | . 551 . 30 165 1026 Destroy 0b10 Robot/C 1020 | . 300 . 20 80 620 Destroy 0b10 Robot/NC 70 | . 30 . 10 . 30 Destroy Leader 248 | . 70 . . 10 168 Disable Machine 75 | . . . . 60 15 Destroy Structure 29 | . 1 . . 15 13 Partial Spotted 15 | . . . . . 15 Lose Combat Pursuer 315 | . 150 . . . 165 Influence Decreases 1245 | . 375 108 98 80 584 Entered New Map 228 | . . 108 68 . 52 Time Decay 837 | . 355 . 30 60 392 Lost Part 180 | . 20 . . 20 140 Squads Dispatched 14 | . 3 . . . 11 Investigation 1 | . 1 . . . . Extermination . | . . . . . . Reinforcement 7 | . 2 . . . 5 Assault . | . . . . . . Garrison 6 | . . . . . 6 Intercept . | . . . . . . Searches Triggered . | . . . . . . Construction Impeded 1 | . . . . . 1 Haulers Reinforced . | . . . . . . Active Scanning Responses . | . . . . . . Cargo Convoy Interrupts . | . . . . . . Stealth | -11 -10 -10 -10 -9 -8 --------- Run | Yrd Mat Min Exi Min Mat Distress Signals 8 | . . . . . 8 Communications Jammed . | . . . . . . Distress Signals . | . . . . . . Times Spotted 93 | . 37 . . 4 52 Peak Tracking Total 9 | . 5 . . 4 9 Tactical Retreats 10 | . 3 . . . 7 Traps | -11 -10 -10 -10 -9 -8 ------- Run | Yrd Mat Min Exi Min Mat Traps Triggered 2 | . 1 . . . 1 Indirectly . | . . . . . . Trap Hack Attempts . | . . . . . . Triggered . | . . . . . . Disarmed . | . . . . . . Reprogrammed . | . . . . . . Reused . | . . . . . . Traps Extracted . | . . . . . . Installed . | . . . . . . Triggered . | . . . . . . Machines | -11 -10 -10 -10 -9 -8 ---------- Run | Yrd Mat Min Exi Min Mat Machines Disabled 5 | . . . . 4 1 Max in Single Turn 4 | . . . . 4 1 Machines Repaired . | . . . . . . Machines Dismantled . | . . . . . . Machines Sabotaged . | . . . . . . Overloaded Fab Kills . | . . . . . . Hacking | -11 -10 -10 -10 -9 -8 --------- Run | Yrd Mat Min Exi Min Mat Machines Accessed 2 | . . . 2 . . Terminals . | . . . . . . Fabricators . | . . . . . . Repair Stations . | . . . . . . Recycling Units . | . . . . . . Scanalyzers . | . . . . . . Garrison Access . | . . . . . . Total Hacks 24 | . . . 24 . . Successful 24 | . . . 24 . . Failed . | . . . . . . Catastrophic . | . . . . . . Database Lockouts . | . . . . . . Manual 1 | . . . 1 . . Terminals . | . . . . . . Fabricators . | . . . . . . Repair Stations . | . . . . . . Recycling Units . | . . . . . . Scanalyzers . | . . . . . . Garrison Access . | . . . . . . Terminal Hacks 24 | . . . 24 . . Record 23 | . . . 23 . . Proto ID Catalog 1 | . . . 1 . . Fabricator Hacks . | . . . . . . Repair Station Hacks . | . . . . . . Recycling Unit Hacks . | . . . . . . Scanalyzer . | . . . . . . Garrison Access Hacks . | . . . . . . Unauthorized Hacks . | . . . . . . Terminals . | . . . . . . Fabricators . | . . . . . . Repair Stations . | . . . . . . Recycling Units . | . . . . . . Scanalyzers . | . . . . . . Garrison Access . | . . . . . . Data Cores Recovered . | . . . . . . Used . | . . . . . . Hacking Detections . | . . . . . . Full Trace Events . | . . . . . . Feedback Events . | . . . . . . Feedback Blocked . | . . . . . . Robot Schematics Acquired . | . . . . . . Robots Built . | . . . . . . Authchips . | . . . . . . Time . | . . . . . . Total Robot Build Rating . | . . . . . . Part Schematics Acquired . | . . . . . . Parts Built . | . . . . . . Authchips . | . . . . . . Time . | . . . . . . Total Part Build Rating . | . . . . . . Part Studies Acquired . | . . . . . . Parts Repaired . | . . . . . . Time . | . . . . . . Parts Recycled . | . . . . . . Recycled Matter . | . . . . . . Retrieved Matter . | . . . . . . Retrieved Components . | . . . . . . Parts Scanalyzed . | . . . . . . Part Schematics Acquired . | . . . . . . Parts Damaged . | . . . . . . Bothacking | -11 -10 -10 -10 -9 -8 ------------ Run | Yrd Mat Min Exi Min Mat Used RIF Installer . | . . . . . . Robots Hacked . | . . . . . . Non-combat . | . . . . . . Combat . | . . . . . . Robot Hacks Applied . | . . . . . . Relay Couplers Released . | . . . . . . Fabnet Peak Effective % . | . . . . . . Robots Rewired . | . . . . . . Allies Hacked . | . . . . . . Hacks Repelled . | . . . . . . Allies | -11 -10 -10 -10 -9 -8 -------- Run | Yrd Mat Min Exi Min Mat Total Allies . | . . . . . . Largest Group . | . . . . . . Highest-Rated Group . | . . . . . . Highest-Rated Ally . | . . . . . . Total Orders . | . . . . . . Ally Attacks . | . . . . . . Total Damage . | . . . . . . Kills . | . . . . . . Allies Corrupted . | . . . . . . Allies Melted . | . . . . . . Intel | -11 -10 -10 -10 -9 -8 ------- Run | Yrd Mat Min Exi Min Mat Active Infowar (turns) . | . . . . . . Robot Analysis Total . | . . . . . . Derelict Logs Recovered . | . . . . . . Drone Launches . | . . . . . . Drone Recoveries . | . . . . . . Exploration | -11 -10 -10 -10 -9 -8 ------------- Run | Yrd Mat Min Exi Min Mat Turns Passed 3764 | 30 2470 12 205 127 920 Spaces Moved 2607 | 47 1170 13 480 163 734 Core 104 | 47 29 . . 2 26 Treads 17 | . . . . . 17 Legs . | . . . . . . Wheels . | . . . . . . Hover . | . . . . . . Flight 2486 | . 1141 13 480 161 691 Fastest Speed 27 | 50 37 37 37 37 27 Average Speed 44 | 50 37 37 37 56 56 Slowest Speed 300 | 50 50 37 37 150 300 Overloaded Moves . | . . . . . . Propulsion Burnouts . | . . . . . . Robots Hopped 17 | . 11 . . . 6 Potential Cave-ins . | . . . . . . Cave-ins Triggered . | . . . . . . Exploration Rate (%) 42 | 3 89 4 89 36 34 Regions Visited 5 Branch Regions 3 Pre-discovered Areas 1 | . . . 1 . . Known Exits Taken . | . . . . . . Unknown Exits Taken 5 | 1 1 1 1 1 . Scrap Searched 2 | . . . . 2 . Spaces Dug . | . . . . . . Terrain Destroyed 37 | . . . . 19 18 Melee . | . . . . . . Projectile 4 | . . . . 3 1 AOE 33 | . . . . 16 17 Terrain Rammed . | . . . . . . Walls Destroyed . | . . . . . . Machines Disabled . | . . . . . . Actions | -11 -10 -10 -10 -9 -8 --------- Run | Yrd Mat Min Exi Min Mat Total 4824 | 52 3078 20 495 179 1000 Wait 1938 | . 1828 6 . . 104 Move 2569 | 46 1148 12 479 162 722 Hop 16 | . 10 . . . 6 Pick Up 22 | 4 12 1 2 . 3 Fast Attach 24 | . 1 . 1 4 18 Attach 12 | 2 6 . . . 4 Detach 1 | . 1 . . . . Swap 4 | . 2 . . . 2 Drop 24 | . 5 1 5 3 10 Fire 214 | . 65 . 8 10 131 Melee . | . . . . . . Ram . | . . . . . . Kick . | . . . . . . Crush . | . . . . . . Escape Stasis . | . . . . . . Rewire . | . . . . . . Trap . | . . . . . . Miscellaneous . | . . . . . . Route ------- -11/Scrapyard -10/Materials (discovered 4 exits: [*Mat x3] / [*Min]) -10/Mines -10/Exiles -9/Mines -8/Materials History --------- Turn | Location | Event 7 | -11/Scrapyard | Discovered new exit (range 15) 31 | -11/Scrapyard | Entered Materials 305 | -10/Materials | Build established: Mutant 2091 | -10/Materials | Discovered new exit (range 10) 2103 | -10/Materials | Discovered new exit (range 5) 2165 | -10/Materials | Discovered new exit (range 5) 2498 | -10/Materials | Discovered new exit (range 6) 2501 | -10/Materials | Entered Mines 2508 | -10/Mines | Received a Rocket Launcher from a helpful Derelict 2512 | -10/Mines | Deemed a non-threat by the Exiles lab entrance 2512 | -10/Mines | Discovered new exit (range 5) 2513 | -10/Mines | Entered Exiles 2513 | -10/Exiles | Found Exiles lab destroyed 2553 | -10/Exiles | Opened EX-Vault 2556 | -10/Exiles | Found AWS/Autocannon 2703 | -10/Exiles | Learned location of Zion (-7) 2713 | -10/Exiles | Discovered new exit (range 14) 2718 | -10/Exiles | Entered Mines 2725 | -9/Mines | Core integrity fell below 50% 2807 | -9/Mines | Found a Scrap Suit stashed away for nefarious purposes 2810 | -9/Mines | Found Scrap Suit 2834 | -9/Mines | Discovered new exit (range 3) 2845 | -9/Mines | Entered Materials 2845 | -8/Materials | Evolved 4 slots: Propulsion x2, Utility x2 2907 | -8/Materials | Garrison activated, responded to threat 3242 | -8/Materials | Garrison activated, responded to threat 3544 | -8/Materials | Build established: Sprinter 3612 | -8/Materials | Core integrity fell below 50% 3653 | -8/Materials | Lost 4 parts (1p1u2w) 3745 | -8/Materials | Core integrity fell below 20% 3765 | -8/Materials | Destroyed by H-61 Shepherd with Heavy Assault Cannon Last Messages --------------- Knocked back. K-01 Serf collects debris. Shotgun destroyed. K-01 Serf collects debris. W-25 Informer sends out distress signal. Imp. Assault Rifle destroyed. K-01 Serf collects debris. Imp. VTOL Module destroyed. Knocked back. Acquired Hpw. Shotgun. U-05 Engineer lays Concrete. W-25 Informer sends out distress signal. U-05 Engineer lays Concrete. U-05 Engineer destroyed. Hpw. Shotgun severed. H4>N LOMLBFQC8E=ZMTE%=ZD VM%83SZ9MGNKNS% Acquired Hpw. Shotgun. K-01 Serf collects debris. Hpw. Shotgun severed. U-05 Engineer lays Concrete. Map ----- +----------------------------------------------------+ | # ?????????????????????????????????????????? | | [ # #?????????????????????????????????????????? | | * #??????????????????????????????????????????? | | # #??????????????????????????????????????????? | | #?#??????????????????????????????????????????? | | # ###??????????###########???????????????????????? | | # #????????????# ! #???????????????????????? | | # #????????????# #???????????????????????? | | #???########?# #???????????????????????? | | #???# ### """ #??????????# ???????????? | | #???# """ ## """ #????????? /????????????? | | #???# """ #?# """ #???????? #????????????? | | #???# " ! ### "Y" #??????? #????????????? | | ##### ### """ ###????# ?????????????? | | ## ######/####"##### ??????????????? | | ######+####### ?????????????? | | [% !%* % % ?????????????? | | % = % ?????????????? | | # # ## ########### #######g### ??????????????? | | # # # # % ## #?????????????????? | | # ##### # #% ## g #?????????????????? | | # ####### # ## =!! =#?????????????????? | | # # # # ## !!!! #?????????????????? | | # # ]]# + w k % ##????????????????? | | # # ]/# # =## u #????????????????? | | + #! ]]/# ###%##H @ #????????????????? | | # # = # #?# ##c #????????????????? | | + # #?#%##[ #????????????????? | | #!] ! ############+###### ###????????????????? | | % ################# #???####??????????????????? | | + #?????????????????????????? | | ################# # #?????????????????????????? | | ????????????????# # #?????????????????????????? | | ????????????????# # #?????????????????????????? | | ????????????????# # #?????????????????????????? | | ????????????????# # #?????????????????????????? | | ????????????????# # #?????????????????????????? | | ????????????????# # #?????????????????????????? | | ###?############# ######?????????????????????????? | | ""#?#!*%=[%==[ = =#??????????????????????????????? | | G"#?#%##/######## #??????????????????????????????? | | "### # [ %#?#=#??????????????????????????????? | | / ! ##?# #??????????????????????????????? | | # """ #??# #??????????????????????????????? | | # """ #??# #??????????????????????????????? | | // # """ #??# #??????????????????????????????? | | // # #??# #??????????????????????????????? | | / ########??# #??????????????????????????????? | | ###???????# #??????????????????????????????? | | #???????# #??????????????????????????????? | +----------------------------------------------------+ Best States ------------- Heat Dissipation 45 Energy Generation 14 Energy Capacity 265 Matter Stores 300 Matter Capacity 300 Sight Range 16 Terrain Scan Density 10 Weapon Shielding 66 Evasion (%) 64 Targeting Accuracy 10 Recoil Reduction 2 Defensive Hacking 10 Item Schematics ----------------- None Robot Schematics ------------------ None Fabricated ------------ Nothing Repaired ---------- Nothing Studied --------- None Alien Tech Used ----------------- None Achievements -------------- Luggage Code Challenges ------------ None Game ------ Seed LayeredFactoryFragment Manual? 0 Play Time 00:55:41 Cumulative 200.5 hours Start 2025.10.28 @ 21:12:08 End 2025.10.29 @ 19:13:50 Sessions 1 Manual Loads 0 Difficulty Rogue Special Mode None Game No. 586 Rogue 585 Adventurer 1 Explorer 0 Win Type - Total 0 Types 0/0/0/0/0/0/0/0/0/0 Lore% 64 Gallery% 60 Achievement% 34 Wizard Run 0 Options --------- Layout 1 ASCII 0 Keyboard 0 Movement Mouse Keybinds 0 Fullscreen 1 Font 24/Smallcaps Map View 50x35 Zoom Use 0% Tactical HUD 0 Map Filters NONE Filters NONE Steam 1 RUN: be8bd7ce-85b0-4653-b344-9096e89e7307